fUSD/lending_fUSD_20260208
["ID","MTS","AMOUNT","RATE_DAILY","PERIOD"]
[404812179,1770588647511,-150.0,0.00041963,30]
[404812180,1770588647521,-150.0,0.0004201,30]
[404812181,1770588647531,-3255.0,0.00042018,2]
[404812182,1770588647544,-6585.0,0.00042018,2]
[404812183,1770588647553,-151.0,0.000421,120]
[404812184,1770588647564,-150.0,0.00042133,30]
[404812185,1770588647574,-150.0,0.00042133,30]
[404812186,1770588647585,-150.0,0.00042133,30]
[404812187,1770588647595,-150.0,0.00042133,30]
[404812188,1770588647606,-150.0,0.00042133,30]
[404812189,1770588647617,-150.0,0.00042133,30]
[404812190,1770588647628,-412.0,0.00042187,2]
[404812191,1770588647638,-208.0,0.00042204,120]
[404812192,1770588647649,-208.0,0.00042228,2]
[404812193,1770588647658,-150.0,0.00042257,30]
[404812194,1770588647668,-150.0,0.00042304,30]
[404812195,1770588647680,-150.0,0.00042335,30]
[404812196,1770588647689,-150.0,0.0004238,30]
[404812197,1770588647699,-150.0,0.00042411,30]
[404812198,1770588647709,-150.0,0.00042426,120]
[404812199,1770588647718,-209.0,0.00042434,7]
[404812200,1770588647728,-500.0,0.00042438,120]
[404812201,1770588647738,-150.0,0.0004245,30]
[404812202,1770588647748,-150.0,0.0004245,30]
[404812203,1770588647760,-19972.0,0.00042466,120]
[404812204,1770588647770,-151.0,0.000425,120]
[404812205,1770588647780,-150.0,0.00042503,30]
[404812206,1770588647790,-418.25978151,0.00042511,15]
[404812207,1770588647805,-169.75030081,0.00042548,30]
[404812208,1770588647815,-568.20404472,0.00042575,120]
[404812209,1770588647825,-150.0,0.00042577,30]
[404812210,1770588647835,-150.0,0.00042626,30]
[404812211,1770588647844,-150.0,0.00042645,30]
[404812212,1770588647855,-840.0,0.00042685,16]
[404812213,1770588647867,-150.0,0.00042688,30]
[404812214,1770588647878,-500.0,0.00042707,60]
[404812215,1770588647888,-500.0,0.00042707,60]
[404812216,1770588647898,-500.0,0.00042707,60]
[404812217,1770588647910,-150.0,0.00042738,30]
[404812218,1770588647921,-800.0,0.0004274,7]
[404812219,1770588647931,-150.0,0.00042749,30]
[404812220,1770588647942,-150.0,0.00042767,30]
[404812221,1770588647952,-150.0,0.00042767,30]
[404812222,1770588647962,-208.0,0.00042784,2]
[404812223,1770588647972,-614.18,0.00042839,2]
[404812224,1770588647985,-51182.0,0.00042846,30]
[404812225,1770588647994,-840.0,0.00042849,16]
[404812226,1770588648004,-150.0,0.00042873,30]
[404812227,1770588648014,-14605.02839685,0.000429,120]
[404812228,1770588648024,-840.0,0.00042917,16]
[404812229,1770588648034,-657.23215215,0.00042939,9]
[404812230,1770588648045,-208.0,0.0004295,7]
[404812231,1770588648056,-2827.0,0.00042965,16]
[404812232,1770588648066,-150.0,0.00042965,30]
[404812233,1770588648077,-2827.0,0.00042967,16]
[404812234,1770588648088,-150.0,0.00042973,10]
[404812235,1770588648099,-300.0,0.00042973,5]
[404812236,1770588648110,-2827.0,0.00042976,16]
[404812237,1770588648121,-4555.29193256,0.0004298,2]
[404812238,1770588648131,-150.0,0.00042986,30]
[404812239,1770588648142,-164.0,0.00042989,16]
[404812240,1770588648153,-522.0,0.00042995,16]
[404812241,1770588648164,-150.0,0.00042996,30]
[404812242,1770588648174,-10000.0,0.00043,120]
[404812243,1770588648188,-48951.23762148,0.00043,2]
[404812244,1770588648198,-169.75030081,0.00043014,30]
[404812245,1770588648207,-150.0,0.0004302,30]
[404812246,1770588648217,-208.0,0.00043067,2]
[404812247,1770588648227,-200.0,0.00043068,120]
[404812248,1770588648236,-262.0,0.00043068,120]
[404812249,1770588648246,-150.0,0.00043084,30]
[404812250,1770588648256,-150.0,0.00043084,30]
[404812251,1770588648265,-151.0,0.000431,120]
[404812252,1770588648275,-150.0,0.00043119,30]
[404812253,1770588648284,-150.0,0.00043141,30]
[404812254,1770588648294,-208.0,0.00043181,7]
[404812255,1770588648304,-656.47,0.000432,30]
[404812256,1770588648314,-151.4213,0.0004322,7]
[404812257,1770588648323,-150.0,0.00043242,30]
[404812258,1770588648332,-150.0,0.00043242,30]
[404812259,1770588648342,-51182.0,0.00043288,30]
[404812260,1770588648351,-840.0,0.00043296,16]
[404812261,1770588648361,-2000.0,0.000433,2]
[404812262,1770588648370,-150.0,0.000433,120]
[404812263,1770588648380,-2827.0,0.00043315,16]
[404812264,1770588648390,-150.0,0.00043328,30]
[404812265,1770588648399,-150.0,0.00043365,30]
[404812266,1770588648409,-3294.85393247,0.00043367,15]
[404812267,1770588648418,-418.25978151,0.00043367,15]
[404812268,1770588648428,-152.52520712,0.000434,120]
[404812269,1770588648437,-151.0,0.000434,120]
[404812270,1770588648446,-780.35191,0.000434,20]
[404812271,1770588648456,-150.0,0.00043401,30]
[404812272,1770588648466,-150.0,0.00043401,30]
[404812273,1770588648475,-150.0,0.00043464,30]
[404812274,1770588648485,-169.75030081,0.00043479,30]
[404812275,1770588648495,-150.0,0.00043489,30]
[404812276,1770588648505,-150.0,0.00043519,30]
[404812277,1770588648514,-251.3634381,0.00043521,10]
[404812278,1770588648523,-300.51862815,0.00043521,5]
[404812279,1770588648535,-150.0,0.00043545,30]
[404812280,1770588648544,-150.0,0.00043612,30]
[404812281,1770588648554,-164.0,0.00043617,16]
[404812282,1770588648564,-150.0,0.00043656,30]
[404812283,1770588648577,-1055.36341633,0.00043656,30]
[404812284,1770588648586,-150.0,0.00043656,30]
[404812285,1770588648595,-3240.89898856,0.00043656,30]
[404812286,1770588648604,-150.0,0.00043656,30]
[404812287,1770588648614,-748.98175907,0.00043656,30]
[404812288,1770588648624,-164.0,0.0004366,16]
[404812289,1770588648635,-150.0,0.00043669,30]
[404812290,1770588648645,-150.0,0.00043717,30]
[404812291,1770588648654,-150.0,0.00043717,30]
[404812292,1770588648665,-51182.0,0.0004373,30]
[404812293,1770588648676,-150.0,0.00043735,30]
[404812294,1770588648685,-150.0,0.00043797,30]
[404812295,1770588648695,-1000.0,0.000438,2]
[404812296,1770588648704,-539.29236495,0.00043803,60]
[404812297,1770588648714,-500.0,0.00043835,2]
[404812298,1770588648725,-500.0,0.00043835,2]
[404812299,1770588648735,-500.0,0.00043835,2]
[404812300,1770588648744,-500.0,0.00043835,120]
[404812301,1770588648755,-500.0,0.00043835,120]
[404812302,1770588648764,-500.0,0.00043835,120]
[404812303,1770588648773,-555.6815294,0.00043835,120]
[404812304,1770588648783,-500.0,0.00043835,120]
[404812305,1770588648794,-527.18632166,0.00043835,120]
[404812306,1770588648804,-500.0,0.00043835,120]
[404812307,1770588648814,-529.91892595,0.00043835,120]
[404812308,1770588648824,-524.11963324,0.00043835,120]
[404812309,1770588648833,-500.0,0.00043835,120]
[404812310,1770588648845,-500.0,0.00043835,120]
[404812311,1770588648855,-542.02774768,0.00043835,120]
[404812312,1770588648865,-514.53562759,0.00043835,120]
[404812313,1770588648875,-500.0,0.00043835,30]
[404812314,1770588648886,-500.0,0.00043835,30]
[404812315,1770588648896,-500.0,0.00043835,30]
[404812316,1770588648907,-500.0,0.00043835,30]
[404812317,1770588648919,-502.31991119,0.00043835,30]
[404812318,1770588648928,-500.0,0.00043835,120]
[404812319,1770588648938,-500.0,0.00043835,120]
[404812320,1770588648947,-500.0,0.00043835,120]
[404812321,1770588648961,-500.0,0.00043835,120]
[404812322,1770588648970,-500.0,0.00043835,120]
[404812323,1770588648980,-500.0,0.00043835,120]
[404812324,1770588648989,-500.0,0.00043835,120]
[404812325,1770588648999,-500.0,0.00043835,120]
[404812326,1770588649008,-500.0,0.00043835,120]
[404812327,1770588649017,-500.0,0.00043835,120]
[404812328,1770588649027,-500.0,0.00043835,120]
[404812329,1770588649036,-629.68618892,0.00043835,120]
[404812330,1770588649045,-500.0,0.00043835,120]
[404812331,1770588649055,-192.11318038,0.00043835,120]
[404812332,1770588649064,-500.0,0.00043835,120]
[404812333,1770588649074,-506.46444736,0.00043835,120]
[404812334,1770588649083,-500.0,0.00043835,120]
[404812335,1770588649092,-500.0,0.00043835,120]
[404812336,1770588649102,-500.0,0.00043835,120]
[404812337,1770588649111,-500.0,0.00043835,120]
[404812338,1770588649120,-500.0,0.00043835,120]
[404812339,1770588649129,-500.0,0.00043835,120]
[404812340,1770588649139,-500.0,0.00043835,120]
[404812341,1770588649148,-539.40911628,0.00043835,120]
[404812342,1770588649158,-506.46476986,0.00043835,120]
[404812343,1770588649167,-500.0,0.00043835,120]
[404812344,1770588649178,-500.0,0.00043835,120]
[404812345,1770588649187,-500.0,0.00043835,120]
[404812346,1770588649198,-287.03504819,0.00043835,120]
[404812347,1770588649208,-507.79672333,0.00043835,120]
[404812348,1770588649217,-500.0,0.00043835,120]
[404812349,1770588649227,-500.0,0.00043835,120]
[404812350,1770588649237,-507.14410672,0.00043835,120]
[404812351,1770588649247,-500.0,0.00043835,30]
[404812352,1770588649256,-500.0,0.00043835,30]
[404812353,1770588649266,-541.00026758,0.00043835,30]
[404812354,1770588649276,-502.46575301,0.00043835,120]
[404812355,1770588649286,-555.618578,0.00043835,120]
[404812356,1770588649296,-500.0,0.00043835,120]
[404812357,1770588649306,-537.50723132,0.00043835,120]
[404812358,1770588649315,-500.0,0.00043835,120]
[404812359,1770588649325,-500.0,0.00043835,120]
[404812360,1770588649337,-516.72776845,0.00043835,120]
[404812361,1770588649348,-500.0,0.00043835,120]
[404812362,1770588649570,-500.0,0.00043835,120]
[404812363,1770588649580,-500.0,0.00043835,120]
[404812364,1770588649591,-162.72923114,0.00043835,120]
[404812365,1770588649601,-500.0,0.00043835,120]
[404812366,1770588649612,-527.38324384,0.00043835,120]
[404812367,1770588649621,-500.0,0.00043835,120]
[404812368,1770588649631,-500.0,0.00043835,120]
[404812369,1770588649641,-500.0,0.00043835,120]
[404812370,1770588649651,-500.0,0.00043835,120]
[404812371,1770588649661,-500.0,0.00043835,120]
[404812372,1770588649672,-500.0,0.00043835,120]
[404812373,1770588649686,-519.67,0.00043835,120]
[404812374,1770588649700,-519.34272349,0.00043835,120]
[404812375,1770588649710,-500.0,0.00043835,120]
[404812376,1770588649719,-481.12912873,0.00043835,120]
[404812377,1770588649730,-500.0,0.00043835,120]
[404812378,1770588649739,-500.0,0.00043835,120]
[404812379,1770588649749,-500.0,0.00043835,120]
[404812380,1770588649757,-500.0,0.00043835,120]
[404812381,1770588649767,-500.0,0.00043835,120]
[404812382,1770588649783,-500.0,0.00043835,120]
[404812383,1770588649798,-500.0,0.00043835,120]
[404812384,1770588649807,-527.40701074,0.00043835,120]
[404812385,1770588649818,-458.72191811,0.00043835,120]
[404812386,1770588649828,-640.23701102,0.00043835,120]
[404812387,1770588649839,-500.0,0.00043835,120]
[404812388,1770588649849,-500.0,0.00043835,120]
[404812389,1770588649859,-604.28,0.00043835,120]
[404812390,1770588649869,-500.0,0.00043835,120]
[404812391,1770588649888,-527.05813882,0.00043835,120]
[404812392,1770588649900,-505.91514197,0.00043835,120]
[404812393,1770588649914,-558.28225915,0.00043835,120]
[404812394,1770588649925,-500.0,0.00043835,120]
[404812395,1770588649936,-564.05694563,0.00043835,120]
[404812396,1770588649946,-507.62471177,0.00043835,120]
[404812397,1770588649958,-510.47621277,0.00043835,120]
[404812398,1770588649968,-508.1886056,0.00043835,120]
[404812399,1770588649977,-500.0,0.00043835,120]
[404812400,1770588649989,-469.15561681,0.00043835,120]
[404812401,1770588649999,-507.79156006,0.00043835,120]
[404812402,1770588650009,-506.05449717,0.00043835,120]
[404812403,1770588650019,-518.10248479,0.00043835,120]
[404812404,1770588650030,-504.85268711,0.00043835,120]
[404812405,1770588650041,-500.0,0.00043835,120]
[404812406,1770588650052,-199.83951095,0.00043835,120]
[404812407,1770588650062,-500.0,0.00043835,120]
[404812408,1770588650073,-500.0,0.00043835,120]
[404812409,1770588650084,-512.39482049,0.00043835,120]
[404812410,1770588650095,-621.64466463,0.00043835,120]
[404812411,1770588650106,-500.0,0.00043835,120]
[404812412,1770588650117,-500.0,0.00043835,120]
[404812413,1770588650126,-512.1090984,0.00043835,120]
[404812414,1770588650135,-515.30554498,0.00043835,120]
[404812415,1770588650144,-500.0,0.00043835,120]
[404812416,1770588650154,-500.0,0.00043835,120]
[404812417,1770588650163,-523.37777034,0.00043835,120]
[404812418,1770588650173,-500.0,0.00043835,120]
[404812419,1770588650183,-500.0,0.00043835,120]
[404812420,1770588650192,-518.74087689,0.00043835,120]
[404812421,1770588650202,-506.43339885,0.00043835,120]
[404812422,1770588650212,-500.0,0.00043835,120]
[404812423,1770588650222,-531.80253217,0.00043835,120]
[404812424,1770588650232,-515.09310759,0.00043835,120]
[404812425,1770588650242,-500.0,0.00043835,120]
[404812426,1770588650253,-500.0,0.00043835,120]
[404812427,1770588650262,-510.13496209,0.00043835,120]
[404812428,1770588650272,-510.19544624,0.00043835,120]
[404812429,1770588650282,-510.23465635,0.00043835,120]
[404812430,1770588650291,-523.20936781,0.00043835,120]
[404812431,1770588650302,-458.48575463,0.00043835,120]
[404812432,1770588650311,-500.0,0.00043835,120]
[404812433,1770588650320,-500.0,0.00043835,120]
[404812434,1770588650330,-500.0,0.00043835,120]
[404812435,1770588650339,-500.0,0.00043835,120]
[404812436,1770588650348,-500.0,0.00043835,120]
[404812437,1770588650358,-500.0,0.00043835,120]
[404812438,1770588650367,-500.0,0.00043835,120]
[404812439,1770588650376,-500.0,0.00043835,120]
[404812440,1770588650386,-500.0,0.00043835,120]
[404812441,1770588650395,-500.0,0.00043835,120]
[404812442,1770588650405,-500.0,0.00043835,120]
[404812443,1770588650414,-512.15199595,0.00043835,120]
[404812444,1770588650423,-508.50533074,0.00043835,120]
[404812445,1770588650433,-508.00612616,0.00043835,120]
[404812446,1770588650443,-500.0,0.00043835,120]
[404812447,1770588650452,-156.08,0.00043835,120]
[404812448,1770588650461,-516.29400781,0.00043835,120]
[404812449,1770588650471,-511.63126456,0.00043835,120]
[404812450,1770588650480,-512.67709021,0.00043835,120]
[404812451,1770588650489,-500.0,0.00043835,120]
[404812452,1770588650498,-571.96448536,0.00043835,120]
[404812453,1770588650507,-500.0,0.00043835,120]
[404812454,1770588650517,-500.0,0.00043835,120]
[404812455,1770588650526,-541.79548207,0.00043835,120]
[404812456,1770588650535,-500.0,0.00043835,120]
[404812457,1770588650544,-500.0,0.00043835,120]
[404812458,1770588650554,-500.0,0.00043835,120]
[404812459,1770588650564,-642.11007679,0.00043835,120]
[404812460,1770588650573,-500.0,0.00043835,120]
[404812461,1770588650582,-500.0,0.00043835,120]
[404812462,1770588650591,-500.0,0.00043835,120]
[404812463,1770588650600,-500.0,0.00043835,120]
[404812464,1770588650609,-500.0,0.00043835,120]
[404812465,1770588650619,-500.0,0.00043835,120]
[404812466,1770588650628,-500.0,0.00043835,120]
[404812467,1770588650638,-362.40634067,0.00043835,120]
[404812468,1770588650647,-500.0,0.00043835,60]
[404812469,1770588650656,-500.0,0.00043835,60]
[404812470,1770588650666,-500.0,0.00043835,60]
[404812471,1770588650675,-500.0,0.00043835,60]
[404812472,1770588650684,-500.0,0.00043835,60]
[404812473,1770588650693,-500.0,0.00043835,60]
[404812474,1770588650703,-500.0,0.00043835,120]
[404812475,1770588650711,-500.0,0.00043835,60]
[404812476,1770588650721,-500.0,0.00043835,120]
[404812477,1770588650730,-500.0,0.00043835,60]
[404812478,1770588650739,-500.0,0.00043835,120]
[404812479,1770588650748,-500.0,0.00043835,120]
[404812480,1770588650757,-500.0,0.00043835,120]
[404812481,1770588650767,-500.0,0.00043835,120]
[404812482,1770588650776,-500.0,0.00043835,120]
[404812483,1770588650786,-500.0,0.00043835,120]
[404812484,1770588650795,-500.0,0.00043835,120]
[404812485,1770588650804,-500.0,0.00043835,120]
[404812486,1770588650813,-500.0,0.00043835,120]
[404812487,1770588650822,-500.0,0.00043835,120]
[404812488,1770588650831,-621.82,0.00043835,120]
[404812489,1770588650840,-502.23205786,0.00043835,120]
[404812490,1770588650849,-500.0,0.00043835,120]
[404812491,1770588650858,-500.0,0.00043835,120]
[404812492,1770588650869,-500.0,0.00043835,120]
[404812493,1770588650879,-500.0,0.00043835,120]
[404812494,1770588650888,-500.0,0.00043835,120]
[404812495,1770588650897,-500.0,0.00043835,120]
[404812496,1770588650910,-500.0,0.00043835,120]
[404812497,1770588650920,-500.0,0.00043835,120]
[404812498,1770588650930,-500.0,0.00043835,120]
[404812499,1770588650940,-500.0,0.00043835,120]
[404812500,1770588650951,-500.0,0.00043835,120]
[404812501,1770588650960,-500.0,0.00043835,120]
[404812502,1770588650970,-500.0,0.00043835,120]
[404812503,1770588650980,-594.13545647,0.00043835,120]
[404812504,1770588650992,-500.0,0.00043835,120]
[404812505,1770588651002,-500.0,0.00043835,120]
[404812506,1770588651011,-500.0,0.00043835,120]
[404812507,1770588651022,-507.92970229,0.00043835,120]
[404812508,1770588651032,-510.01353917,0.00043835,120]
[404812509,1770588651043,-512.55454383,0.00043835,120]
[404812510,1770588651053,-500.0,0.00043835,120]
[404812511,1770588651064,-500.0,0.00043835,120]
[404812512,1770588651074,-500.0,0.00043835,120]
[404812513,1770588651084,-309.39236467,0.00043835,120]
[404812514,1770588651093,-527.06115507,0.00043835,120]
[404812515,1770588651103,-527.98031355,0.00043835,120]
[404812516,1770588651112,-500.0,0.00043835,120]
[404812517,1770588651123,-606.41554009,0.00043835,120]
[404812518,1770588651133,-572.71662605,0.00043835,120]
[404812519,1770588651144,-500.0,0.00043835,120]
[404812520,1770588651154,-500.0,0.00043835,120]
[404812521,1770588651170,-500.0,0.00043835,120]
[404812522,1770588651180,-334.17529481,0.00043835,120]
[404812523,1770588651189,-500.0,0.00043835,120]
[404812524,1770588651198,-515.50773263,0.00043835,120]
[404812525,1770588651208,-543.47858256,0.00043835,120]
[404812526,1770588651217,-513.78584317,0.00043835,120]
[404812527,1770588651226,-500.0,0.00043835,120]
[404812528,1770588651235,-500.0,0.00043835,120]
[404812529,1770588651245,-500.0,0.00043835,120]
[404812530,1770588651254,-500.0,0.00043835,120]
[404812531,1770588651264,-503.32990416,0.00043835,120]
[404812532,1770588651274,-500.0,0.00043835,120]
[404812533,1770588651283,-500.0,0.00043835,120]
[404812534,1770588651292,-510.29490347,0.00043835,120]
[404812535,1770588651302,-500.0,0.00043835,120]
[404812536,1770588651313,-500.0,0.00043835,120]
[404812537,1770588651323,-587.28640187,0.00043835,120]
[404812538,1770588651333,-527.34887562,0.00043835,120]
[404812539,1770588651341,-500.0,0.00043835,120]
[404812540,1770588651350,-500.0,0.00043835,120]
[404812541,1770588651360,-500.0,0.00043835,120]
[404812542,1770588651369,-500.0,0.00043835,120]
[404812543,1770588651379,-500.0,0.00043835,120]
[404812544,1770588651388,-569.88560542,0.00043835,120]
[404812545,1770588651397,-535.13448003,0.00043835,120]
[404812546,1770588651407,-504.13177603,0.00043835,120]
[404812547,1770588651416,-500.0,0.00043835,120]
[404812548,1770588651425,-500.0,0.00043835,120]
[404812549,1770588651435,-500.0,0.00043835,120]
[404812550,1770588651444,-541.66828621,0.00043835,120]
[404812551,1770588651453,-568.61749345,0.00043835,120]
[404812552,1770588651462,-506.8158921,0.00043835,120]
[404812553,1770588651471,-545.08004178,0.00043835,120]
[404812554,1770588651480,-503.23727213,0.00043835,120]
[404812555,1770588651490,-501.77708909,0.00043835,120]
[404812556,1770588651500,-522.52883178,0.00043835,120]
[404812557,1770588651509,-576.96804551,0.00043835,120]
[404812558,1770588651517,-509.40527024,0.00043835,120]
[404812559,1770588651526,-500.0,0.00043835,120]
[404812560,1770588651535,-511.30712019,0.00043835,120]
[404812561,1770588651544,-514.03732089,0.00043835,120]
[404812562,1770588651554,-500.0,0.00043835,120]
[404812563,1770588651563,-530.92279339,0.00043835,120]
[404812564,1770588651572,-240.04617274,0.00043835,120]
[404812565,1770588651581,-500.0,0.00043835,120]
[404812566,1770588651590,-500.0,0.00043835,120]
[404812567,1770588651599,-583.10774687,0.00043835,120]
[404812568,1770588651608,-500.0,0.00043835,120]
[404812569,1770588651617,-500.0,0.00043835,120]
[404812570,1770588651627,-502.65439109,0.00043835,120]
[404812571,1770588651635,-503.815303,0.00043835,120]
[404812572,1770588651644,-500.0,0.00043835,120]
[404812573,1770588651653,-500.0,0.00043835,120]
[404812574,1770588651662,-512.52591222,0.00043835,120]
[404812575,1770588651671,-503.85936221,0.00043835,120]
[404812576,1770588651680,-500.0,0.00043835,120]
[404812577,1770588651690,-630.99585678,0.00043835,120]
[404812578,1770588651699,-528.00706095,0.00043835,120]
[404812579,1770588651707,-500.0,0.00043835,120]
[404812580,1770588651717,-500.0,0.00043835,120]
[404812581,1770588651726,-500.0,0.00043835,120]
[404812582,1770588651735,-500.0,0.00043835,120]
[404812583,1770588651744,-504.60890697,0.00043835,120]
[404812584,1770588651753,-500.0,0.00043835,120]
[404812585,1770588651767,-506.65869214,0.00043835,120]
[404812586,1770588651776,-500.0,0.00043835,120]
[404812587,1770588651786,-500.0,0.00043835,120]
[404812588,1770588651795,-500.0,0.00043835,120]
[404812589,1770588651804,-500.0,0.00043835,120]
[404812590,1770588651813,-500.0,0.00043835,120]
[404812591,1770588651823,-500.0,0.00043835,120]
[404812592,1770588651833,-634.15129447,0.00043835,120]
[404812593,1770588651842,-500.0,0.00043835,120]
[404812594,1770588651851,-500.0,0.00043835,120]
[404812595,1770588651861,-500.0,0.00043835,120]
[404812596,1770588651870,-500.0,0.00043835,120]
[404812597,1770588651880,-500.0,0.00043835,120]
[404812598,1770588651890,-500.0,0.00043835,120]
[404812599,1770588651899,-500.0,0.00043835,120]
[404812600,1770588651910,-500.0,0.00043835,120]
[404812601,1770588651927,-500.0,0.00043835,120]
[404812602,1770588651938,-500.0,0.00043835,120]
[404812603,1770588651950,-500.0,0.00043835,120]
[404812604,1770588651966,-500.0,0.00043835,120]
[404812605,1770588651980,-500.0,0.00043835,120]
[404812606,1770588651993,-553.0621435,0.00043835,120]
[404812607,1770588652004,-500.0,0.00043835,120]
[404812608,1770588652016,-500.0,0.00043835,120]
[404812609,1770588652026,-500.0,0.00043835,120]
[404812610,1770588652037,-531.64460315,0.00043835,120]
[404812611,1770588652047,-521.89038704,0.00043835,120]
[404812612,1770588652058,-500.0,0.00043835,120]
[404812613,1770588652069,-500.0,0.00043835,120]
[404812614,1770588652080,-500.0,0.00043835,120]
[404812615,1770588652091,-500.0,0.00043835,120]
[404812616,1770588652102,-500.0,0.00043835,120]
[404812617,1770588652113,-500.0,0.00043835,120]
[404812618,1770588652124,-500.0,0.00043835,120]
[404812619,1770588652134,-500.0,0.00043835,120]
[404812620,1770588652145,-500.0,0.00043835,3]
[404812621,1770588652160,-500.0,0.00043835,120]
[404812622,1770588652172,-500.0,0.00043835,3]
[404812623,1770588652183,-500.0,0.00043835,120]
[404812624,1770588652195,-500.0,0.00043835,120]
[404812625,1770588652206,-500.0,0.00043835,120]
[404812626,1770588652218,-500.0,0.00043835,3]
[404812627,1770588652229,-278.20347343,0.00043835,120]
[404812628,1770588652241,-500.0,0.00043835,120]
[404812629,1770588652253,-500.0,0.00043835,120]
[404812630,1770588652265,-500.0,0.00043835,3]
[404812631,1770588652276,-500.0,0.00043835,120]
[404812632,1770588652287,-500.0,0.00043835,120]
[404812633,1770588652297,-500.0,0.00043835,3]
[404812634,1770588652308,-558.95831848,0.00043835,3]
[404812635,1770588652319,-522.51334949,0.00043835,120]
[404812636,1770588652329,-500.0,0.00043835,120]
[404812637,1770588652339,-500.0,0.00043835,120]
[404812638,1770588652349,-508.70359898,0.00043835,120]
[404812639,1770588652364,-500.0,0.00043835,120]
[404812640,1770588652376,-540.56982345,0.00043835,120]
[404812641,1770588652388,-500.0,0.00043835,120]
[404812642,1770588652399,-500.0,0.00043835,120]
[404812643,1770588652410,-516.06832689,0.00043835,120]
[404812644,1770588652421,-500.0,0.00043835,120]
[404812645,1770588652432,-500.0,0.00043835,120]
[404812646,1770588652443,-500.0,0.00043835,120]
[404812647,1770588652454,-500.0,0.00043835,120]
[404812648,1770588652465,-500.0,0.00043835,120]
[404812649,1770588652475,-500.0,0.00043835,120]
[404812650,1770588652486,-500.0,0.00043835,120]
[404812651,1770588652497,-435.74938194,0.00043835,120]
[404812652,1770588652508,-500.0,0.00043835,120]
[404812653,1770588652519,-500.0,0.00043835,120]
[404812654,1770588652531,-247.56262988,0.00043835,120]
[404812655,1770588652541,-500.0,0.00043835,120]
[404812656,1770588652555,-530.96980232,0.00043835,120]
[404812657,1770588652566,-500.0,0.00043835,120]
[404812658,1770588652577,-500.0,0.00043835,120]
[404812659,1770588652587,-500.0,0.00043835,120]
[404812660,1770588652597,-500.0,0.00043835,120]
[404812661,1770588652608,-500.0,0.00043835,120]
[404812662,1770588652620,-515.07343694,0.00043835,120]
[404812663,1770588652631,-500.0,0.00043835,120]
[404812664,1770588652641,-526.55424694,0.00043835,120]
[404812665,1770588652652,-500.0,0.00043835,120]
[404812666,1770588652663,-500.0,0.00043835,120]
[404812667,1770588652674,-506.61615214,0.00043835,120]
[404812668,1770588652685,-500.0,0.00043835,120]
[404812669,1770588652696,-500.0,0.00043835,120]
[404812670,1770588652706,-524.24750595,0.00043835,120]
[404812671,1770588652717,-426.49097965,0.00043835,120]
[404812672,1770588652727,-500.0,0.00043835,120]
[404812673,1770588652740,-500.0,0.00043835,120]
[404812674,1770588652750,-540.32254068,0.00043835,120]
[404812675,1770588652761,-500.0,0.00043835,120]
[404812676,1770588652771,-500.0,0.00043835,120]
[404812677,1770588652783,-500.0,0.00043835,120]
[404812678,1770588652794,-500.0,0.00043835,120]